fUST/lending_fUST_20251225
["ID","MTS","AMOUNT","RATE_DAILY","PERIOD"]
[399746049,1766653323579,754.49,0.00032876,120]
[399746050,1766653323678,500.0,0.00032876,120]
[399746051,1766653323773,1050.55,0.00032876,120]
[399746052,1766653323857,752.25,0.00032876,120]
[399746053,1766653323934,754.49,0.00032876,120]
[399746054,1766653324011,500.0,0.00032876,120]
[399746055,1766653324089,1050.55,0.00032876,120]
[399746056,1766653324209,752.25,0.00032876,120]
[399746057,1766653324285,754.49,0.00032876,120]
[399746058,1766653324366,505.15042959,0.00032876,120]
[399746059,1766653324444,1050.55,0.00032876,120]
[399746060,1766653324527,752.25,0.00032876,120]
[399746062,1766653324598,754.49,0.00032876,120]
[399746063,1766653324671,1050.55,0.00032876,120]
[399746064,1766653324739,752.25,0.00032876,120]
[399746065,1766653324813,754.49,0.00032876,120]
[399746066,1766653324880,1050.55,0.00032876,120]
[399746067,1766653324948,752.25,0.00032876,120]
[399746068,1766653325025,754.49,0.00032876,120]
[399746069,1766653325104,1050.55,0.00032876,120]
[399746070,1766653325178,752.25,0.00032876,120]
[399746071,1766653325253,754.49,0.00032876,120]
[399746072,1766653325326,1050.55,0.00032876,120]
[399746073,1766653325404,752.25,0.00032876,120]
[399746074,1766653325476,754.49,0.00032876,120]
[399746075,1766653325546,1050.55,0.00032876,120]
[399746076,1766653325619,752.25181246,0.00032876,120]
[399746077,1766653325691,754.49,0.00032876,120]
[399746078,1766653325768,1050.55,0.00032876,120]
[399746079,1766653325842,754.49,0.00032876,120]
[399746080,1766653325926,1050.55852879,0.00032876,120]
[399746081,1766653326225,754.49,0.00032876,120]
[399746082,1766653326310,754.49,0.00032876,120]
[399746083,1766653326399,754.49,0.00032876,120]
[399746084,1766653326490,754.49,0.00032876,120]
[399746085,1766653326576,754.56515274,0.00032876,120]
[399746090,1766653328687,500.0,0.00032876,120]
[399746091,1766653328869,500.0,0.00032876,120]
[399746092,1766653329109,24689.12,0.00032876,120]
[399746093,1766653329190,557.51069376,0.00032876,120]
[399746094,1766653329344,24689.12,0.00032876,120]
[399746095,1766653329597,24689.12,0.00032876,120]
[399746096,1766653329903,24689.12,0.00032876,120]
[399746097,1766653330145,24689.12,0.00032876,120]
[399746099,1766653331129,24689.12,0.00032876,120]
[399746100,1766653331365,24689.12,0.00032876,120]
[399746101,1766653331600,24689.12,0.00032876,120]
[399746102,1766653331903,24689.12,0.00032876,120]
[399746103,1766653332140,24689.12,0.00032876,120]
[399746104,1766653332224,500.0,0.00032876,120]
[399746105,1766653332381,24689.12,0.00032876,120]
[399746106,1766653332466,500.0,0.00032876,120]
[399746107,1766653332702,24689.12,0.00032876,120]
[399746108,1766653332781,571.56080773,0.00032876,120]
[399746109,1766653333197,24689.12,0.00032876,120]
[399746110,1766653333295,24689.12,0.00032876,120]
[399746111,1766653333375,500.0,0.00032876,120]
[399746112,1766653333499,24689.12,0.00032876,120]
[399746113,1766653333586,500.0,0.00032876,120]
[399746115,1766653333751,24689.12,0.00032876,120]
[399746116,1766653333839,500.0,0.00032876,120]
[399746117,1766653333992,24689.12,0.00032876,120]
[399746118,1766653334070,500.0,0.00032876,120]
[399746119,1766653334153,194.40398195,0.00032876,120]
[399746120,1766653334241,24689.12,0.00032876,120]
[399746121,1766653334323,412.67441588,0.00032876,120]
[399746122,1766653334498,24689.12,0.00032876,120]
[399746123,1766653334646,585.77717499,0.00032876,120]
[399746124,1766653334733,24689.12,0.00032876,120]
[399746125,1766653334989,24689.12,0.00032876,120]
[399746126,1766653335066,500.0,0.00032876,120]
[399746127,1766653335238,24689.12,0.00032876,120]
[399746128,1766653335320,500.0,0.00032876,120]
[399746129,1766653335455,24689.12,0.00032876,120]
[399746130,1766653335536,614.50192138,0.00032876,120]
[399746132,1766653335693,24689.28779469,0.00032876,120]
[399746134,1766653337552,5189.37,0.00032876,120]
[399746135,1766653337751,278.14150534,0.00032876,120]
[399746136,1766653337844,5189.37,0.00032876,120]
[399746137,1766653338021,5189.37,0.00032876,120]
[399746138,1766653338259,500.0,0.00032876,120]
[399746139,1766653338340,5189.37,0.00032876,120]
[399746140,1766653338526,5189.37,0.00032876,120]
[399746141,1766653338605,500.0,0.00032876,120]
[399746142,1766653338742,5189.37,0.00032876,120]
[399746143,1766653338816,265.37804011,0.00032876,120]
[399746144,1766653338889,500.0,0.00032876,120]
[399746145,1766653338975,5189.37,0.00032876,120]
[399746146,1766653339173,514.23611485,0.00032876,120]
[399746147,1766653339317,500.0,0.00032876,120]
[399746148,1766653339397,5189.37,0.00032876,120]
[399746149,1766653339481,402.11700848,0.00032876,120]
[399746150,1766653339561,5189.37,0.00032876,120]
[399746151,1766653339644,767.54,0.00032876,120]
[399746152,1766653339720,5189.37,0.00032876,120]
[399746154,1766653339918,767.54,0.00032876,120]
[399746156,1766653339990,5189.37,0.00032876,120]
[399746157,1766653340154,767.54,0.00032876,120]
[399746159,1766653340224,5189.37,0.00032876,120]
[399746161,1766653340409,767.54,0.00032876,120]
[399746162,1766653340493,5189.37,0.00032876,120]
[399746163,1766653340571,500.0,0.00032876,120]
[399746164,1766653340651,767.54,0.00032876,120]
[399746166,1766653340718,5189.37,0.00032876,120]
[399746167,1766653340790,500.0,0.00032876,120]
[399746168,1766653340899,5189.37,0.00032876,120]
[399746170,1766653340967,484.79641052,0.00032876,120]
[399746171,1766653341043,767.54,0.00032876,120]
[399746172,1766653341131,5189.37,0.00032876,120]
[399746174,1766653341211,767.54,0.00032876,120]
[399746177,1766653341376,5189.37,0.00032876,120]
[399746178,1766653341450,767.54,0.00032876,120]
[399746180,1766653341675,5189.37,0.00032876,120]
[399746181,1766653341749,767.54,0.00032876,120]
[399746183,1766653341867,5189.37,0.00032876,120]
[399746184,1766653341937,767.54,0.00032876,120]
[399746186,1766653342100,5189.37,0.00032876,120]
[399746187,1766653342177,767.54,0.00032876,120]
[399746189,1766653342327,5189.37,0.00032876,120]
[399746190,1766653342423,767.54,0.00032876,120]
[399746192,1766653342574,5189.37,0.00032876,120]
[399746193,1766653342655,767.54,0.00032876,120]
[399746194,1766653342816,5189.37,0.00032876,120]
[399746195,1766653342902,767.54,0.00032876,120]
[399746196,1766653342986,500.0,0.00032876,120]
[399746197,1766653343069,5189.49,0.00032876,120]
[399746198,1766653343152,767.54,0.00032876,120]
[399746201,1766653343466,501.04774814,0.00032876,120]
[399746202,1766653343549,767.54,0.00032876,120]
[399746204,1766653343633,767.54,0.00032876,120]
[399746205,1766653343816,767.54,0.00032876,120]
[399746207,1766653344041,767.54,0.00032876,120]
[399746208,1766653344277,767.54,0.00032876,120]
[399746209,1766653344499,1068.58,5e-05,2]
[399746210,1766653344578,767.54,0.00032876,120]
[399746211,1766653345116,767.54,0.00032876,120]
[399746212,1766653345208,767.54,0.00032876,120]
[399746214,1766653345289,500.0,0.00032876,120]
[399746215,1766653345452,767.68094324,0.00032876,120]
[399746216,1766653345538,500.0,0.00032876,120]
[399746217,1766653345726,158.80338811,0.00032876,120]
[399746219,1766653346363,500.0,0.00032876,120]
[399746220,1766653346606,584.38448566,0.00032876,120]
[399746221,1766653347196,500.0,0.00032876,120]
[399746222,1766653347426,500.0,0.00032876,120]
[399746223,1766653347547,500.0,0.00032876,120]
[399746224,1766653347681,500.0,0.00032876,120]
[399746225,1766653347789,500.0,0.00032876,120]
[399746226,1766653347949,500.0,0.00032876,120]
[399746227,1766653348036,500.0,0.00032876,120]
[399746228,1766653348279,240.81306378,0.00032876,120]
[399746229,1766653348354,500.0,0.00032876,120]
[399746231,1766653348550,500.0,0.00032876,120]
[399746232,1766653348778,500.0,0.00032876,120]
[399746233,1766653349012,500.0,0.00032876,120]
[399746234,1766653349238,500.0,0.00032876,120]
[399746235,1766653349312,379.44146253,0.00032876,120]
[399746236,1766653349493,500.0,0.00032876,120]
[399746237,1766653349715,500.0,0.00032876,120]
[399746238,1766653349952,500.0,0.00032876,120]
[399746240,1766653350412,500.0,0.00032876,120]
[399746241,1766653350641,500.0,0.00032876,120]
[399746243,1766653350876,500.0,0.00032876,120]
[399746244,1766653351179,500.0,0.00032876,120]
[399746245,1766653351377,500.0,0.00032876,120]
[399746246,1766653351801,500.0,0.00032876,120]
[399746247,1766653351876,500.0,0.00032876,120]
[399746248,1766653352038,322.6970312,0.00032876,120]
[399746249,1766653352305,501.53198554,0.00032876,120]
[399746251,1766653354090,2491.6,0.00032876,120]
[399746252,1766653354314,2491.6,0.00032876,120]
[399746253,1766653354537,2491.6,0.00032876,120]
[399746254,1766653354778,2491.6,0.00032876,120]
[399746255,1766653355006,2491.6,0.00032876,120]
[399746256,1766653355231,2491.6,0.00032876,120]
[399746257,1766653355310,500.0,0.00032876,120]
[399746258,1766653355456,2491.6,0.00032876,120]
[399746259,1766653355537,246.42694233,0.00032876,120]
[399746260,1766653355692,2491.6,0.00032876,120]
[399746261,1766653355963,2491.6,0.00032876,120]
[399746262,1766653356039,500.0,0.00032876,120]
[399746263,1766653356256,500.0,0.00032876,120]
[399746264,1766653356338,2491.6,0.00032876,120]
[399746265,1766653356485,500.0,0.00032876,120]
[399746266,1766653356784,2491.6,0.00032876,120]
[399746267,1766653356917,174.44298868,0.00032876,120]
[399746268,1766653356993,2491.6,0.00032876,120]
[399746269,1766653357172,2491.6,0.00032876,120]
[399746270,1766653357437,2491.6,0.00032876,120]
[399746271,1766653357572,500.0,0.00032876,120]
[399746272,1766653357650,2491.6,0.00032876,120]
[399746273,1766653357776,46514.76,0.00032876,120]
[399746274,1766653357852,500.0,0.00032876,120]
[399746275,1766653357929,2491.6,0.00032876,120]
[399746276,1766653358014,46514.76,0.00032876,120]
[399746277,1766653358098,448.14981941,0.00032876,120]
[399746278,1766653358182,2491.6,0.00032876,120]
[399746279,1766653358267,46514.76,0.00032876,120]
[399746280,1766653358352,2491.6,0.00032876,120]
[399746281,1766653358539,46514.76,0.00032876,120]
[399746282,1766653358613,2491.6,0.00032876,120]
[399746284,1766653358775,46514.76,0.00032876,120]
[399746286,1766653358839,2491.6,0.00032876,120]
[399746288,1766653359036,2491.6,0.00032876,120]
[399746289,1766653359105,46514.76,0.00032876,120]
[399746291,1766653359264,2491.6,0.00032876,120]
[399746293,1766653359343,46514.76,0.00032876,120]
[399746294,1766653359428,500.0,0.00032876,120]
[399746295,1766653359516,2491.6,0.00032876,120]
[399746296,1766653359598,46514.76,0.00032876,120]
[399746297,1766653359677,500.0,0.00032876,120]
[399746298,1766653359759,2491.64835857,0.00032876,120]
[399746299,1766653359846,242.57673646,0.00032876,120]
[399746301,1766653360111,46514.76,0.00032876,120]
[399746302,1766653360348,46514.76,0.00032876,120]
[399746303,1766653360593,46514.76,0.00032876,120]
[399746304,1766653360926,46514.76,0.00032876,120]
[399746305,1766653361160,46514.76,0.00032876,120]
[399746307,1766653361444,46514.76,0.00032876,120]
[399746308,1766653361557,500.0,0.00032876,120]
[399746309,1766653361640,8557.63049839,0.00032876,120]
[399746311,1766653364360,-150.0,5.256e-05,2]
[399746312,1766653364384,-1068.58,5.6e-05,2]
[399746313,1766653364408,-150.0,5.734e-05,2]
[399746314,1766653364431,-1068.58,6.1e-05,2]
[399746315,1766653364455,-150.0,6.212e-05,2]
[399746316,1766653364479,-150.0,6.689e-05,2]
[399746317,1766653364500,-1068.58,6.7e-05,2]
[399746318,1766653364523,-150.0,7.167e-05,2]
[399746319,1766653364545,-1068.58,7.3e-05,2]
[399746320,1766653364568,-150.0,7.645e-05,2]
[399746321,1766653364590,-1068.58,7.8e-05,2]
[399746322,1766653364614,-174.14,8.017e-05,2]
[399746323,1766653364637,-1068.58,8.4e-05,2]
[399746324,1766653364661,-199.02,8.489e-05,2]
[399746325,1766653364684,-223.9,8.96e-05,2]
[399746326,1766653364708,-1068.58,9e-05,2]
[399746327,1766653364731,-756.4772307,9.084e-05,2]
[399746329,1766653364752,-380.68019298,9.138e-05,2]
[399746330,1766653364774,-300.0,9.161e-05,2]
[399746331,1766653364797,-500.0,9.162e-05,2]
[399746332,1766653364819,-500.0,9.162e-05,2]
[399746333,1766653364842,-500.0,9.162e-05,2]
[399746334,1766653364865,-500.0,9.162e-05,2]
[399746335,1766653365123,-500.0,9.162e-05,2]
[399746336,1766653365146,-500.0,9.162e-05,2]
[399746337,1766653365169,-500.0,9.162e-05,2]
[399746338,1766653365191,-612.71786857,9.162e-05,2]
[399746339,1766653365215,-246.63158951,9.162e-05,2]
[399746340,1766653365236,-179.8548829,9.162e-05,2]
[399746341,1766653365259,-202.88988146,9.163e-05,2]
[399746342,1766653365284,-187.68664148,9.163e-05,2]
[399746343,1766653365306,-1655.9417124,9.163e-05,2]
[399746397,1766653401907,1466.94,4.4e-05,2]
[399746398,1766653402341,1466.94,4.5e-05,2]
[399746399,1766653402811,1466.94,4.6e-05,2]
[399746400,1766653403192,1466.94,4.8e-05,2]
[399746401,1766653403565,1466.94,4.9e-05,2]
[399746402,1766653403929,1466.94,5e-05,2]
[399746439,1766653459457,1073.64,4.4e-05,2]
[399746440,1766653459744,1073.64,4.5e-05,2]
[399746441,1766653460032,1073.64,4.6e-05,2]
[399746442,1766653460329,1073.64,4.8e-05,2]
[399746444,1766653460613,1073.64,4.9e-05,2]
[399746445,1766653460893,1073.64,5e-05,2]
[399746460,1766653477980,5000.0,5e-05,2]
[399746485,1766653501314,5000.0,5e-05,2]
[399746499,1766653518689,1419.75,4.4e-05,2]
[399746500,1766653519014,1419.75,4.5e-05,2]
[399746501,1766653519943,1419.75,4.6e-05,2]
[399746502,1766653520295,1419.75,4.8e-05,2]
[399746503,1766653520749,1419.75,4.9e-05,2]
[399746504,1766653521054,1419.75,5e-05,2]
[399746559,1766653579127,1115.17,4.4e-05,2]
[399746561,1766653579431,1115.17,4.5e-05,2]
[399746565,1766653579728,1115.17,4.6e-05,2]
[399746567,1766653580015,1115.17,4.8e-05,2]
[399746571,1766653580700,1115.17,4.9e-05,2]
[399746573,1766653580757,1115.17,5e-05,2]
[399746629,1766653613138,-379.04296574,5.069e-05,2]
[399746646,1766653638459,1383.2,4.4e-05,2]
[399746647,1766653638795,1383.2,4.5e-05,2]
[399746648,1766653639099,1383.2,4.6e-05,2]
[399746649,1766653639424,1383.2,4.8e-05,2]
[399746651,1766653639732,1383.2,4.9e-05,2]
[399746652,1766653640032,1383.2,5e-05,2]
[399746718,1766653684035,151.19,3.436e-05,2]
[399746730,1766653697641,1147.33,4.4e-05,2]
[399746731,1766653697962,1147.33,4.5e-05,2]
[399746732,1766653698270,1147.33,4.6e-05,2]
[399746734,1766653698547,1147.33,4.8e-05,2]
[399746736,1766653698831,1147.33,4.9e-05,2]
[399746737,1766653699116,1147.33,5e-05,2]
[399746765,1766653715484,1147.56,4.416e-05,2]
[399746774,1766653726793,5000.0,5e-05,2]
[399746804,1766653752310,-493.92,5.198e-05,2]
[399746815,1766653759647,1354.9,4.4e-05,2]
[399746816,1766653759925,1354.9,4.5e-05,2]
[399746817,1766653760335,1354.9,4.6e-05,2]
[399746818,1766653760617,1354.9,4.8e-05,2]
[399746819,1766653760906,1354.9,4.9e-05,2]
[399746820,1766653761205,1354.9,5e-05,2]
[399746900,1766653816644,1172.24,4.4e-05,2]
[399746901,1766653816926,1172.24,4.5e-05,2]
[399746902,1766653817498,1172.24,4.6e-05,2]
[399746903,1766653817645,1172.24,4.8e-05,2]
[399746904,1766653817924,1172.24,4.9e-05,2]
[399746905,1766653818316,1172.24,5e-05,2]
[399746916,1766653838055,-557.66978425,5.1e-05,2]
[399746917,1766653838071,-614.57021575,5.1e-05,2]
[399746918,1766653838081,-114.08233938,5.198e-05,2]
[399746919,1766653838091,-1172.24,5.2e-05,2]
[399746920,1766653838103,-1172.24,5.3e-05,2]
[399746921,1766653838113,-1114.52662487,5.4e-05,2]
[399746924,1766653840535,-57.71337513,5.4e-05,2]
[399746925,1766653840546,-150.0,5.518e-05,2]
[399746926,1766653840556,-1172.24,5.6e-05,2]
[399746927,1766653840566,-263.77438243,5.7e-05,2]
[399747162,1766653846223,-718.8429263,5.7e-05,2]
[399747224,1766653879414,1061.77,4.4e-05,2]
[399747225,1766653879697,1061.77,4.5e-05,2]
[399747226,1766653880051,1061.77,4.6e-05,2]
[399747228,1766653880347,1061.77,4.8e-05,2]
[399747229,1766653880665,1061.77,4.9e-05,2]
[399747230,1766653880969,1061.77,5e-05,2]
[399747282,1766653938002,934.36,4.4e-05,2]
[399747283,1766653938303,934.36,4.5e-05,2]
[399747284,1766653938776,934.36,4.6e-05,2]
[399747285,1766653939136,934.36,4.8e-05,2]
[399747287,1766653939476,934.36,4.9e-05,2]
[399747288,1766653939764,934.36,5e-05,2]
[399747336,1766653998191,822.24,4.4e-05,2]
[399747337,1766653998507,822.24,4.5e-05,2]
[399747338,1766653998783,822.24,4.6e-05,2]
[399747339,1766653999065,695.69671126,4.8e-05,2]
[399747370,1766654060599,758.99,4.4e-05,2]
[399747371,1766654078192,-758.99,4.5e-05,2]
[399747372,1766654078214,-758.99,4.6e-05,2]
[399747373,1766654078235,-758.99,4.8e-05,2]
[399747374,1766654078258,-758.99,4.9e-05,2]
[399747375,1766654078280,-758.99,5e-05,2]
[399747376,1766654078301,-758.99,5.1e-05,2]
[399747377,1766654078337,-150.0,5.101e-05,2]
[399747378,1766654078361,-758.99,5.2e-05,2]
[399747379,1766654078387,-758.99,5.3e-05,2]
[399747380,1766654078416,-758.99,5.4e-05,2]
[399747381,1766654078440,-150.0,5.565e-05,2]
[399747382,1766654078465,-758.99,5.6e-05,2]
[399747383,1766654078492,-758.99,5.7e-05,2]
[399747384,1766654078518,-351.11,5.8e-05,2]
[399747391,1766654115798,569.81,4.4e-05,2]
[399747395,1766654178771,558.41,4.4e-05,2]
[399747400,1766654240143,547.24,4.4e-05,2]
[399747406,1766654299825,536.3,4.4e-05,2]
[399747443,1766654358978,525.57,4.4e-05,2]
[399747445,1766654420834,515.06,4.4e-05,2]
[399747446,1766654421186,515.06,4.5e-05,2]
[399747447,1766654479859,494.46,4.4e-05,2]
[399747448,1766654480298,494.46,4.5e-05,2]
[399747449,1766654489355,3233.29109281,4.5e-05,2]
[399747455,1766654539415,474.68,4.4e-05,2]
[399747456,1766654539695,474.68,4.5e-05,2]
[399747457,1766654551489,200.0,0.0001,4]
[399747463,1766654600553,455.69,4.4e-05,2]
[399747464,1766654601294,455.69,4.5e-05,2]
[399747471,1766654661922,437.47,4.4e-05,2]
[399747472,1766654662208,437.47,4.5e-05,2]
[399747473,1766654713487,33.3477649,0.0001,5]
[399747474,1766654713516,1000.0,0.0001,5]
[399747480,1766654720752,419.97,4.4e-05,2]
[399747481,1766654721084,419.97,4.5e-05,2]
[399747490,1766654779482,403.17,4.4e-05,2]
[399747491,1766654779804,403.17,4.5e-05,2]
[399747493,1766654839263,387.04,4.4e-05,2]
[399747494,1766654839682,387.04,4.5e-05,2]
[399747497,1766654901016,371.56,4.4e-05,2]
[399747498,1766654901302,371.56,4.5e-05,2]
[399747501,1766654958350,356.7,4.4e-05,2]
[399747502,1766654958643,356.7,4.5e-05,2]
[399747503,1766654967136,-356.7,4.6e-05,2]
[399747504,1766654967157,-150.0,4.7e-05,2]
[399747505,1766654967178,-356.7,4.8e-05,2]
[399747506,1766654967198,-356.7,4.9e-05,2]
[399747507,1766654967220,-356.7,5e-05,2]
[399747508,1766654967251,-150.0,5.097e-05,2]
[399747509,1766654967277,-237.15584589,5.1e-05,2]
[399747510,1766655017377,309.15,4.4e-05,2]
[399747511,1766655017793,309.15,4.5e-05,2]
[399747532,1766655032064,-290.67103723,4.6e-05,2]
[399747545,1766655038123,-18.47896277,4.6e-05,2]
[399747546,1766655038134,-309.15,4.8e-05,2]
[399747547,1766655038144,-309.15,4.9e-05,2]
[399747548,1766655038154,-309.15,5e-05,2]
[399747549,1766655038164,-86.42231978,5.1e-05,2]
[399747550,1766655038177,-222.72768022,5.1e-05,2]
[399747551,1766655038187,-150.0,5.139e-05,2]
[399747552,1766655038197,-309.15,5.2e-05,2]
[399747553,1766655038207,-309.15,5.3e-05,2]
[399747554,1766655038217,-309.15,5.4e-05,2]
[399747555,1766655038227,-150.0,5.561e-05,2]
[399747556,1766655038238,-309.15,5.6e-05,2]
[399747557,1766655038248,-309.15,5.7e-05,2]
[399747558,1766655038260,-309.15,5.8e-05,2]
[399747559,1766655038271,-309.15,5.9e-05,2]
[399747560,1766655038281,-309.15,6e-05,2]
[399747561,1766655038292,-150.0,6.024e-05,2]
[399747562,1766655038302,-309.15,6.1e-05,2]
[399747563,1766655038312,-500.0,6.195e-05,2]
[399747564,1766655038322,-500.0,6.195e-05,2]
[399747565,1766655038332,-500.0,6.195e-05,2]
[399747566,1766655038343,-214.72137496,6.195e-05,2]
[399747567,1766655038353,-453.56151799,6.195e-05,2]
[399747568,1766655038363,-500.0,6.195e-05,2]
[399747569,1766655038372,-500.0,6.195e-05,2]
[399747570,1766655038382,-500.0,6.195e-05,2]
[399747571,1766655038392,-500.0,6.195e-05,2]
[399747572,1766655038402,-500.0,6.195e-05,2]
[399747573,1766655038412,-630.40796276,6.195e-05,2]
[399747574,1766655038423,-500.0,6.195e-05,2]
[399747575,1766655038432,-500.0,6.195e-05,2]
[399747576,1766655038442,-500.0,6.195e-05,2]
[399747577,1766655038452,-500.0,6.195e-05,2]
[399747578,1766655038463,-500.0,6.195e-05,2]
[399747579,1766655038472,-500.0,6.195e-05,2]
[399747580,1766655038482,-500.0,6.195e-05,2]
[399747581,1766655038492,-500.0,6.195e-05,2]
[399747582,1766655038502,-500.0,6.195e-05,2]
[399747583,1766655038511,-500.0,6.195e-05,2]
[399747584,1766655038521,-500.0,6.195e-05,2]
[399747585,1766655038531,-500.0,6.195e-05,2]
[399747586,1766655038541,-500.0,6.195e-05,2]
[399747587,1766655038552,-500.0,6.195e-05,2]
[399747588,1766655038563,-500.0,6.195e-05,2]
[399747589,1766655038573,-277.2987834,6.195e-05,2]
[399747590,1766655038583,-500.0,6.195e-05,2]
[399747591,1766655038592,-500.0,6.195e-05,2]
[399747592,1766655038603,-50000.0,6.196e-05,2]
[399747593,1766655038613,-545.0,6.196e-05,2]
[399747594,1766655038623,-309.15,6.2e-05,2]
[399747595,1766655038633,-309.15,6.4e-05,2]
[399747596,1766655038643,-150.0,6.487e-05,2]
[399747597,1766655038653,-309.15,6.5e-05,2]
[399747598,1766655038664,-309.15,6.6e-05,2]
[399747599,1766655038674,-335.0,6.699e-05,2]
[399747600,1766655038685,-177.0,6.7e-05,2]
[399747601,1766655038695,-309.15,6.7e-05,2]
[399747602,1766655038706,-300.0,6.75e-05,2]
[399747603,1766655038716,-512.33792243,6.75e-05,2]
[399747604,1766655038731,-5681.8399427,6.752e-05,2]
[399747605,1766655038742,-309.15,6.8e-05,2]
[399747606,1766655038752,-352.81,6.9e-05,2]
[399747607,1766655038763,-309.15,6.9e-05,2]
[399747608,1766655038773,-309.15,7e-05,2]
[399747609,1766655038785,-150.87,7.008e-05,2]
[399747610,1766655038798,-213.94378369,7.071e-05,2]
[399747611,1766655038810,-435.06307769,7.183e-05,2]
[399747612,1766655038820,-309.15,7.2e-05,2]
[399747613,1766655038831,-244.50718136,7.24e-05,2]
[399747614,1766655038841,-258.4492875,7.244e-05,2]
[399747615,1766655038852,-309.15,7.3e-05,2]
[399747616,1766655038863,-309.15,7.4e-05,2]
[399747617,1766655038873,-679.10627284,7.42e-05,2]
[399747618,1766655038884,-300.0,7.425e-05,2]
[399747619,1766655038895,-381.6604284,7.475e-05,2]
[399747620,1766655038906,-181.04,7.475e-05,2]
[399747621,1766655038916,-309.15,7.5e-05,2]
[399747622,1766655038926,-309.15,7.6e-05,2]
[399747623,1766655038937,-1267.7898563,7.61e-05,2]
[399747624,1766655038947,-309.15,7.7e-05,2]
[399747625,1766655038957,-309.15,7.8e-05,2]
[399747626,1766655038969,-282.8821536,7.801e-05,2]
[399747627,1766655038979,-309.15,7.9e-05,2]
[399747628,1766655038990,-211.22,7.942e-05,2]
[399747629,1766655039000,-309.15,8.1e-05,2]
[399747630,1766655039011,-309.15,8.2e-05,2]
[399747631,1766655039022,-239.43367147,8.219e-05,2]
[399747632,1766655039033,-500.0,8.219e-05,2]
[399747633,1766655039043,-350.59229361,8.27e-05,2]
[399747634,1766655039054,-631.0661285,8.27e-05,2]
[399747635,1766655039063,-309.15,8.3e-05,2]
[399747636,1766655039074,-301.42669219,8.343e-05,2]
[399747637,1766655039084,-542.56804593,8.343e-05,2]
[399747638,1766655039094,-309.15,8.4e-05,2]
[399747639,1766655039104,-241.39,8.41e-05,2]
[399747640,1766655039114,-1121.89533956,8.456e-05,2]
[399747641,1766655039125,-500.0,8.493e-05,2]
[399747642,1766655039135,-309.15,8.5e-05,2]
[399747643,1766655039144,-964.56541499,8.516e-05,2]
[399747644,1766655039154,-309.15,8.6e-05,2]
[399747645,1766655039165,-204.0,8.7e-05,2]
[399747646,1766655039175,-309.15,8.7e-05,2]
[399747647,1766655039186,-396.67667494,8.705e-05,2]
[399747648,1766655039196,-1751.2085066,8.726e-05,2]
[399747649,1766655039207,-1507.13346093,8.739e-05,2]
[399747650,1766655039217,-500.0,8.767e-05,2]
[399747651,1766655039226,-271.56,8.877e-05,2]
[399747652,1766655039236,-309.15,8.9e-05,2]
[399747653,1766655039246,-453.34477136,8.901e-05,2]
[399747654,1766655039255,-2168.10191155,8.963e-05,2]
[399747655,1766655039266,-151.0,9e-05,2]